bitfinex-derivatives/quotes_SOLF0:USTF0_20260226
["timestamp","ask_amount","ask_price","bid_price","bid_amount"]
[1772116384406,10.2727,87.608,87.551,8.40727721]
[1772116384604,8.40306975,87.629,87.551,8.40727721]
[1772116384909,8.40306975,87.645,87.551,8.40727721]
[1772116385106,10.2712,87.621,87.562,10.278]
[1772116386006,10.2712,87.621,87.57,10.2771]
[1772116386408,8.40306975,87.625,87.551,8.40727721]
[1772116386609,8.40306975,87.625,87.54,8.03928731]
[1772116386908,10.2751,87.588,87.531,10.2816]
[1772116387106,10.2751,87.588,87.52,8.03928731]
[1772116387107,10.2751,87.588,87.532,8.40727721]
[1772116387311,8.40306975,87.603,87.506,8.40727721]
[1772116387510,8.40306975,87.589,87.506,8.40727721]
[1772116388213,8.70158349,87.609,87.511,8.40727721]
[1772116388504,8.40306975,87.608,87.511,8.40727721]
[1772116388710,8.40306975,87.6,87.531,8.40727721]
[1772116388907,8.40306975,87.629,87.531,8.40727721]
[1772116389108,10.2743,87.595,87.541,10.2804]
[1772116389300,8.40306975,87.606,87.531,8.40727721]
[1772116389714,8.40306975,87.632,87.562,8.40727721]
[1772116390813,8.40306975,87.632,87.541,8.40727721]
[1772116391717,8.40306975,87.669,87.581,8.40727721]
[1772116392513,8.40306975,87.669,87.588,10.2749]
[1772116392711,8.40306975,87.669,87.581,8.40727721]
[1772116393115,8.40306975,87.669,87.607,10.2727]
[1772116393412,8.40306975,87.669,87.581,8.40727721]
[1772116394415,37.54215922,87.688,87.56,8.03928731]
[1772116394416,8.40306975,87.647,87.56,8.40727721]
[1772116394809,10.2727,87.608,87.54,8.03928731]
[1772116395510,8.40306975,87.607,87.54,8.03928731]
[1772116395714,10.2727,87.608,87.541,8.40727721]
[1772116396016,8.40306975,87.609,87.519,8.40727721]
[1772116396209,8.40306975,87.609,87.531,8.40727721]
[1772116396607,8.40306975,87.629,87.531,8.40727721]
[1772116397010,10.2705,87.627,87.571,10.277]
[1772116397214,8.40306975,87.629,87.551,8.40727721]
[1772116397410,8.40306975,87.62,87.53,8.03928731]
[1772116397612,10.2737,87.6,87.528,8.40727721]
[1772116397915,8.40306975,87.609,87.528,8.40727721]
[1772116399218,8.40306975,87.609,87.555,10.2788]
[1772116399815,8.40306975,87.609,87.531,8.40727721]
[1772116400318,8.40306975,87.609,87.463,28.17990664]
[1772116400319,8.40306975,87.585,87.492,8.40727721]
[1772116401112,8.40306975,87.609,87.511,8.40727721]
[1772116401313,8.40306975,87.589,87.511,8.40727721]
[1772116401715,8.40306975,87.589,87.491,8.40727721]
[1772116402214,8.40306975,87.569,87.491,8.40727721]
[1772116402617,18.68036975,87.569,87.51,10.2841]
[1772116403423,8.40306975,87.564,87.469,8.40727721]
[1772116403717,8.40306975,87.564,87.481,8.40727721]
[1772116403921,8.40306975,87.586,87.51,8.40727721]
[1772116404415,10.2758,87.582,87.523,10.2826]
[1772116404619,10.2758,87.582,87.51,8.40727721]
[1772116404917,10.2783,87.561,87.502,10.2851]
[1772116405312,8.40306975,87.579,87.489,8.40727721]
[1772116405910,8.40306975,87.579,87.491,10.2863]
[1772116405911,10.2803,87.544,87.491,10.2863]
[1772116406115,8.40306975,87.579,87.491,10.2863]
[1772116407018,10.2791,87.553,87.491,10.2863]
[1772116407219,8.40306975,87.579,87.492,7.95203573]
[1772116407721,8.40306975,87.579,87.501,7.95203573]
[1772116407923,10.2769,87.573,87.513,10.2838]
[1772116408310,8.40306975,87.579,87.503,10.285]
[1772116408311,10.2778,87.565,87.503,10.285]
[1772116408514,8.40306975,87.579,87.504,7.95203573]
[1772116409018,7.67812352,87.599,87.523,7.95203573]
[1772116409416,17.95192352,87.599,87.54,10.2806]
[1772116409717,7.67812352,87.619,87.523,7.95203573]
[1772116409923,7.67812352,87.639,87.541,7.95203573]
[1772116410121,10.2703,87.629,87.565,10.2776]
[1772116410518,10.2703,87.629,87.541,7.95203573]
[1772116410519,7.67812352,87.639,87.541,7.95203573]
[1772116410922,7.67812352,87.619,87.52,8.050744]
[1772116411119,7.67812352,87.619,87.49,20.573]
[1772116411120,7.67812352,87.619,87.551,7.95203573]
[1772116411320,20.99754036,87.684,87.494,160.0043]
[1772116411321,7.67812352,87.642,87.561,7.95203573]
[1772116411619,10.2677,87.651,87.592,10.2745]
[1772116411819,10.2677,87.651,87.581,7.95203573]
[1772116412016,7.67812352,87.663,87.581,7.95203573]
[1772116412327,7.67812352,87.659,87.581,7.95203573]
[1772116413027,7.67812352,87.659,87.561,7.95203573]
[1772116413626,10.2698,87.633,87.577,10.2762]
[1772116413925,7.67812352,87.659,87.571,7.95203573]
[1772116414125,7.67812352,87.678,87.571,7.95203573]
[1772116415125,7.67812352,87.678,87.591,7.95203573]
[1772116415926,7.67812352,87.704,87.621,7.95203573]
[1772116416124,7.67812352,87.704,87.631,7.95203573]
[1772116416326,10.2616,87.703,87.632,10.2698]
[1772116416525,7.67812352,87.704,87.631,7.95203573]
[1772116416725,7.67812352,87.699,87.609,7.95203573]
[1772116416927,8.050744,87.72,87.609,7.95203573]
[1772116416928,10.2656,87.669,87.609,7.95203573]
[1772116417524,7.67812352,87.657,87.57,8.050744]
[1772116417728,7.67812352,87.657,87.565,7.95203573]
[1772116418427,7.67812352,87.639,87.565,7.95203573]
[1772116418626,10.2705,87.627,87.565,18.22963573]
[1772116418827,10.2705,87.627,87.565,7.95203573]
[1772116419229,17.94862352,87.627,87.565,7.95203573]
[1772116419426,10.272,87.614,87.565,7.95203573]
[1772116419629,10.272,87.614,87.53,8.050744]
[1772116419630,7.67812352,87.619,87.542,7.95203573]
[1772116420732,8.050744,87.6,87.511,7.95203573]
[1772116420933,7.67812352,87.599,87.511,7.95203573]
[1772116421132,10.2774,87.568,87.511,7.95203573]
[1772116421327,7.67812352,87.579,87.511,7.95203573]
[1772116421938,10.2763,87.578,87.521,10.2828]
[1772116422142,15.72886752,87.6,87.511,7.95203573]
[1772116422328,10.2748,87.59,87.526,10.2822]
[1772116422735,7.67812352,87.599,87.511,7.95203573]
[1772116422935,10.276,87.58,87.524,10.2824]
[1772116423143,7.67812352,87.599,87.511,7.95203573]
[1772116423434,10.4980546,87.655,87.49,8.050744]
[1772116423435,15.72886752,87.62,87.536,7.95203573]
[1772116423635,7.67812352,87.639,87.541,7.95203573]
[1772116423830,7.67812352,87.639,87.561,7.95203573]
[1772116424039,17.94722352,87.639,87.561,7.95203573]
[1772116424236,7.67812352,87.639,87.561,7.95203573]
[1772116425632,7.67812352,87.639,87.541,7.95203573]
[1772116426039,7.67812352,87.639,87.54,8.050744]
[1772116426040,7.67812352,87.639,87.561,7.95203573]
[1772116426834,15.72886752,87.66,87.561,7.95203573]
[1772116427443,10.2668,87.659,87.594,10.2742]
[1772116427644,7.67812352,87.679,87.581,7.95203573]
[1772116428137,10.2676,87.651,87.592,10.2745]
[1772116428539,7.67812352,87.679,87.581,7.95203573]
[1772116428745,10.2663,87.662,87.592,10.2745]
[1772116428945,10.2663,87.662,87.581,7.95203573]
[1772116429547,7.67812352,87.679,87.601,7.95203573]
[1772116430044,10.2645,87.678,87.601,7.95203573]
[1772116431349,10.2645,87.678,87.619,10.2713]
[1772116431649,10.2632,87.689,87.601,7.95203573]
[1772116432149,7.67812352,87.702,87.622,7.95203573]
[1772116432549,10.2619,87.7,87.641,10.2688]
[1772116433052,7.67812352,87.702,87.641,10.2688]
[1772116433444,7.67812352,87.702,87.622,7.95203573]
[1772116433647,7.67812352,87.688,87.622,7.95203573]
[1772116434148,7.67812352,87.688,87.625,10.2706]
[1772116434149,10.2637,87.685,87.625,10.2706]
[1772116434651,7.67812352,87.669,87.579,7.95203573]
[1772116435353,7.67812352,87.648,87.558,7.95203573]
[1772116435847,7.67812352,87.646,87.587,10.2751]
[1772116436453,7.67812352,87.646,87.558,7.95203573]
[1772116436755,7.67812352,87.646,87.571,7.67026329]
[1772116436952,8.050744,87.66,87.571,7.67026329]
[1772116437157,7.6035012,87.669,87.592,7.67026329]
[1772116437844,7.6035012,87.669,87.612,10.2721]
[1772116438553,10.2657,87.668,87.602,10.2733]
[1772116438754,10.2657,87.668,87.592,7.67026329]
[1772116438954,7.6035012,87.669,87.592,7.67026329]
[1772116439156,10.2635,87.687,87.614,7.67026329]
[1772116439455,7.6035012,87.714,87.614,7.67026329]
[1772116439654,7.6035012,87.714,87.61,8.050744]
[1772116439655,7.6035012,87.714,87.634,7.67026329]
[1772116439954,7.6035012,87.709,87.611,7.67026329]
[1772116440159,10.2614,87.705,87.65,10.2677]
[1772116440659,10.2624,87.696,87.641,10.2688]
[1772116440851,7.6035012,87.709,87.631,7.67026329]
[1772116441250,7.6035012,87.709,87.611,7.67026329]
[1772116441653,7.6035012,87.709,87.654,10.2672]
[1772116441850,8.050744,87.73,87.651,7.67026329]
[1772116442051,7.6035012,87.729,87.651,7.67026329]
[1772116442251,7.6035012,87.707,87.623,7.67026329]
[1772116442459,7.6035012,87.707,87.631,7.67026329]
[1772116442959,10.2599,87.718,87.665,10.2659]
[1772116443658,10.2608,87.71,87.656,10.2669]
[1772116443861,7.6035012,87.709,87.63,7.67026329]
[1772116444356,7.6035012,87.709,87.611,7.67026329]
[1772116444955,7.6035012,87.731,87.645,7.67026329]
[1772116445460,7.6035012,87.731,87.66,8.050744]
[1772116445758,20.504,87.786,87.661,7.67026329]
[1772116445759,7.6035012,87.752,87.661,7.67026329]
[1772116445951,17.8595012,87.751,87.661,7.67026329]
[1772116446153,7.6035012,87.751,87.661,7.67026329]
[1772116446660,10.2568,87.744,87.661,7.67026329]
[1772116446857,7.6035012,87.751,87.661,7.67026329]
[1772116447061,10.2579,87.735,87.676,10.2646]
[1772116447558,7.6035012,87.751,87.661,7.67026329]
[1772116448162,7.6035012,87.773,87.666,7.67026329]
[1772116448459,238.60190954,87.825,87.66,8.050744]
[1772116448460,7.6035012,87.795,87.701,7.67026329]
[1772116449054,8.050744,87.78,87.701,7.67026329]
[1772116449366,7.6035012,87.779,87.701,7.67026329]
[1772116450260,7.6035012,87.777,87.701,7.67026329]
[1772116450562,7.6035012,87.777,87.681,7.67026329]
[1772116451161,7.6035012,87.799,87.701,7.67026329]
[1772116451866,10.2506,87.797,87.721,7.67026329]
[1772116452058,7.6035012,87.797,87.721,7.67026329]
[1772116452252,7.6035012,87.819,87.721,7.67026329]
[1772116452453,7.6035012,87.819,87.747,7.67026329]
[1772116452961,10.2475,87.824,87.768,10.2539]
[1772116453269,7.56328968,87.839,87.768,10.2539]
[1772116453453,7.56328968,87.839,87.747,7.67026329]
[1772116454361,10.2485,87.815,87.754,10.2556]
[1772116454564,7.56328968,87.819,87.747,7.67026329]
[1772116454759,10.2471,87.827,87.747,7.67026329]
[1772116454960,7.56328968,87.819,87.747,7.67026329]
[1772116455361,10.2496,87.806,87.747,7.67026329]
[1772116455563,7.56328968,87.799,87.724,7.67378682]
[1772116455960,8.050744,87.82,87.734,7.67378682]
[1772116456366,7.56328968,87.819,87.734,7.67378682]
[1772116456968,7.56328968,87.799,87.713,7.67378682]
[1772116457162,7.56328968,87.799,87.724,10.259]
[1772116457665,10.2509,87.795,87.733,10.258]
[1772116457964,7.56328968,87.799,87.721,7.67378682]
[1772116458268,7.56328968,87.799,87.747,10.2563]
[1772116458569,7.56328968,87.826,87.741,7.67378682]
[1772116459560,10.2473,87.825,87.759,10.255]
[1772116459970,10.2493,87.808,87.749,10.2561]
[1772116460670,7.56328968,87.819,87.741,7.67378682]
[1772116461371,10.2505,87.798,87.741,7.67378682]
[1772116461666,8.050744,87.84,87.751,7.67378682]
[1772116461964,10.248,87.82,87.761,10.2547]
[1772116462172,7.56328968,87.839,87.751,7.67378682]
[1772116462371,10.2478,87.821,87.76,10.2548]
[1772116462572,7.56328968,87.839,87.751,7.67378682]
[1772116463468,8.050744,87.84,87.731,7.67378682]
[1772116463469,7.56328968,87.82,87.731,7.67378682]
[1772116463770,7.56328968,87.819,87.731,7.67378682]
[1772116464370,7.56328968,87.805,87.731,7.67378682]
[1772116464670,7.56328968,87.799,87.711,7.67378682]
[1772116465469,7.56328968,87.799,87.735,7.67378682]
[1772116465665,7.56328968,87.819,87.735,7.67378682]
[1772116465862,7.56328968,87.819,87.666,159.691]
[1772116465863,7.56328968,87.799,87.711,7.67378682]
[1772116466064,8.00828802,87.78,87.711,7.67378682]
[1772116466265,16.08298401,87.82,87.731,7.51324836]
[1772116466470,8.07469599,87.819,87.731,7.51324836]
[1772116466771,8.07469599,87.839,87.751,7.51324836]
[1772116467163,8.07469599,87.82,87.757,10.2552]
[1772116467868,8.07469599,87.82,87.766,10.2541]
[1772116468169,8.07469599,87.82,87.73,8.00828802]
[1772116468170,8.07469599,87.84,87.761,7.51324836]
[1772116468375,16.08298401,87.84,87.761,7.51324836]
[1772116468572,8.07469599,87.839,87.761,7.51324836]
[1772116469268,8.00828802,87.84,87.766,10.2541]
[1772116469269,8.07469599,87.837,87.766,10.2541]
[1772116469471,8.07469599,87.837,87.761,7.51324836]
[1772116469872,10.2494,87.808,87.761,7.51324836]
[1772116470077,8.07469599,87.837,87.761,7.51324836]
[1772116470377,10.2461,87.835,87.782,10.2523]
[1772116470669,8.07469599,87.837,87.761,7.51324836]
[1772116470869,57.71107885,87.884,87.761,7.51324836]
[1772116470870,8.07469599,87.857,87.761,7.51324836]
[1772116471077,8.00828802,87.87,87.781,7.51324836]
[1772116471681,8.07469599,87.877,87.781,7.51324836]
[1772116472075,8.07469599,87.849,87.781,7.51324836]
[1772116472572,10.2427,87.865,87.816,10.2483]
[1772116472779,8.07469599,87.871,87.752,159.5354]
[1772116472780,4.018e-05,87.85,87.801,7.51324836]
[1772116472972,8.07469599,87.899,87.821,7.51324836]
[1772116473168,8.07469599,87.899,87.801,7.51324836]
[1772116473372,8.07469599,87.879,87.778,7.51324836]
[1772116473775,10.2422,87.869,87.811,10.2489]
[1772116473974,8.07469599,87.879,87.798,7.51324836]
[1772116475977,8.07469599,87.909,87.811,7.51324836]
[1772116476583,8.07469599,87.909,87.84,10.2455]
[1772116476875,8.07469599,87.909,87.811,7.51324836]
[1772116477175,10.239,87.896,87.838,10.2457]
[1772116477576,386.8639,87.98,87.79,8.00828802]
[1772116477577,7.53594007,87.907,87.834,7.51324836]
[1772116478083,7.53594007,87.889,87.813,8.32655025]
[1772116478480,10.2423,87.869,87.815,10.2485]
[1772116478677,7.53594007,87.913,87.816,8.32655025]
[1772116478876,8.00828802,87.91,87.821,8.32655025]
[1772116479075,7.53594007,87.913,87.841,8.32655025]
[1772116479283,7.53594007,87.934,87.841,8.32655025]
[1772116479576,8.00828802,87.95,87.843,10.2451]
[1772116479577,10.2377,87.908,87.843,10.2451]
[1772116479783,7.53594007,87.927,87.841,8.32655025]
[1772116479979,159.0799,88.004,87.798,20.5007]
[1772116479980,7.53594007,87.951,87.888,10.2398]
[1772116480177,7.53594007,87.951,87.878,8.32655025]
[1772116480379,7.53594007,87.959,87.881,8.32655025]
[1772116480583,7.53594007,87.943,87.859,8.32655025]
[1772116481276,7.53594007,87.989,87.898,8.32655025]
[1772116481476,7.53594007,87.969,87.876,8.32655025]
[1772116481976,7.53594007,87.949,87.876,8.32655025]
[1772116482175,7.53594007,87.929,87.852,8.32655025]
[1772116482679,7.53594007,87.978,87.852,8.32655025]
[1772116482879,8.00828802,87.95,87.884,10.2403]
[1772116483183,7.53594007,87.957,87.85,8.00828802]
[1772116483184,7.53594007,87.957,87.885,8.32655025]
[1772116483680,7.53594007,87.957,87.89,10.2396]
[1772116483983,5.11821848,87.961,87.884,8.32655025]
[1772116484183,7.53594007,87.97,87.884,8.32655025]
[1772116484381,7.53594007,87.969,87.884,8.32655025]
[1772116484776,7.53594007,87.969,87.896,10.2389]
[1772116485277,7.53594007,87.957,87.884,8.32655025]
[1772116485576,8.00828802,87.95,87.884,8.32655025]
[1772116485970,8.00828802,87.95,87.805,159.438]
[1772116485971,8.00828802,87.93,87.86,8.32655025]
[1772116486182,15.54422809,87.93,87.86,8.32655025]
[1772116486382,10.2366,87.917,87.86,8.32655025]
[1772116486686,8.00828802,87.91,87.831,8.32655025]
[1772116487080,7.53594007,87.909,87.831,8.32655025]
[1772116487276,7.53594007,87.899,87.831,8.32655025]
[1772116487483,159.1848,87.946,87.801,8.32655025]
[1772116487484,7.53594007,87.889,87.801,8.32655025]
[1772116487778,10.2422,87.87,87.808,10.2493]
[1772116487988,7.53594007,87.869,87.801,8.32655025]
[1772116488884,7.53594007,87.849,87.771,8.32655025]
[1772116489080,15.54422809,87.87,87.771,8.32655025]
[1772116489282,7.53594007,87.869,87.771,8.32655025]
[1772116489782,7.53594007,87.849,87.771,8.32655025]
[1772116490179,8.00828802,87.83,87.771,8.32655025]
[1772116490374,7.53594007,87.829,87.731,8.32655025]
[1772116490779,10.25,87.802,87.738,8.32655025]
[1772116490983,7.53594007,87.809,87.711,8.32655025]
[1772116491681,7.53594007,87.789,87.681,8.32655025]
[1772116492183,10.2521,87.784,87.713,10.2603]
[1772116492384,10.2521,87.784,87.709,8.32655025]
[1772116492582,7.53594007,87.789,87.709,8.32655025]
[1772116493480,7.53594007,87.789,87.722,10.2593]
[1772116493994,7.53594007,87.828,87.723,8.32655025]
[1772116494487,7.53594007,87.82,87.723,8.32655025]
[1772116494787,10.2504,87.799,87.725,8.32655025]
[1772116494985,7.53594007,87.82,87.725,8.32655025]
[1772116495179,7.53594007,87.82,87.72,8.00828802]
[1772116495180,10.2496,87.805,87.732,18.58465025]
[1772116495582,10.2496,87.805,87.733,8.32655025]
[1772116495888,8.00828802,87.81,87.735,8.32655025]
[1772116496185,8.00828802,87.81,87.72,8.00828802]
[1772116496186,8.00828802,87.85,87.741,7.99181991]
[1772116496484,7.6181351,87.849,87.777,7.99181991]
[1772116496783,7.6181351,87.869,87.777,7.99181991]
[1772116497098,7.6181351,87.849,87.777,7.99181991]
[1772116497276,7.6181351,87.869,87.781,7.99181991]
[1772116497677,7.6181351,87.869,87.788,18.24331991]
[1772116497882,7.6181351,87.869,87.788,7.99181991]
[1772116498678,7.6181351,87.869,87.803,10.2498]
[1772116499683,7.6181351,87.893,87.804,7.99181991]
[1772116500090,7.6181351,87.887,87.804,7.99181991]
[1772116500286,7.6181351,87.909,87.821,7.99181991]
[1772116500584,20.4601,87.974,87.786,159.4738]
[1772116500585,7.6181351,87.929,87.842,18.23701991]
[1772116500786,8.00828802,87.95,87.861,7.99181991]
[1772116500988,7.6181351,87.969,87.881,7.99181991]
[1772116501194,7.6181351,87.96,87.882,10.2405]
[1772116501687,9.06731649,88.002,87.84,8.00828802]
[1772116501688,7.6181351,87.933,87.858,7.99181991]
[1772116501881,8.00828802,87.95,87.858,7.99181991]
[1772116502187,7.6181351,87.96,87.84,8.00828802]
[1772116502188,7.6181351,87.96,87.871,7.99181991]
[1772116502488,7.6181351,87.949,87.873,10.2416]
[1772116502785,7.6181351,87.949,87.884,10.2404]
[1772116502992,7.6181351,87.969,87.874,7.99181991]
[1772116503188,8.00828802,87.97,87.86,159.3393]
[1772116503189,8.00828802,87.99,87.891,7.99181991]
[1772116503490,7.6181351,87.969,87.891,7.99181991]
[1772116503685,15.62642312,87.95,87.851,7.99181991]
[1772116503888,7.6181351,87.949,87.866,10.2425]
[1772116504285,7.6181351,87.949,87.851,7.99181991]
[1772116504698,159.0422,88.025,87.85,8.00828802]
[1772116504699,7.6181351,88.002,87.892,7.99181991]
[1772116504994,7.6181351,87.999,87.91,8.00828802]
[1772116505186,7.6181351,87.997,87.915,10.2368]
[1772116505383,7.6181351,87.997,87.892,7.99181991]
[1772116505384,7.6181351,87.997,87.91,8.00828802]
[1772116505582,7.6181351,87.992,87.915,10.2367]
[1772116505794,7.6181351,87.992,87.91,8.00828802]
[1772116506292,7.6181351,87.989,87.892,7.99181991]
[1772116506691,8.00828802,88.01,87.932,7.99181991]
[1772116506894,7.6181351,88.009,87.932,7.99181991]
[1772116507298,8.00828802,88.05,87.961,7.99181991]
[1772116507493,59.09971647,88.057,87.939,7.99181991]
[1772116507701,8.00828802,88.01,87.911,7.99181991]
[1772116507892,8.00828802,88.04,87.941,7.99181991]
[1772116508393,294.37034459,88.028,87.961,7.99181991]
[1772116508897,294.37034459,88.028,87.974,10.2299]
[1772116509092,294.37034459,88.028,87.961,7.99181991]
[1772116509093,8.00828802,88.06,87.961,7.99181991]
[1772116509295,6.28327849,88.07,87.986,7.99181991]
[1772116509597,1.97708738,88.095,88.021,7.99181991]
[1772116509796,10.46190954,88.173,88.02,8.00828802]
[1772116509797,7.6181351,88.164,88.079,7.99181991]
[1772116509995,7.6181351,88.164,88.07,8.00828802]
[1772116510195,8.00828802,88.16,88.07,8.00828802]
[1772116510498,7.6181351,88.156,88.065,18.21111991]
[1772116510694,7.6181351,88.189,88.091,7.99181991]
[1772116510897,490.6361709,88.264,88.09,8.00828802]
[1772116510898,7.6181351,88.193,88.11,8.00828802]
[1772116511102,8.00828802,88.17,88.07,8.00828802]
[1772116511395,8.00828802,88.17,88.012,159.0626]
[1772116511396,7.6181351,88.1,87.998,7.99181991]
[1772116511703,5.11388065,88.101,88.021,7.99181991]
[1772116511997,7.6181351,88.089,88.001,7.99181991]
[1772116512190,7.6181351,88.079,87.981,7.99181991]
[1772116512497,158.8728,88.119,87.981,7.99181991]
[1772116512498,8.00828802,88.07,87.981,7.99181991]
[1772116512692,8.00828802,88.09,87.981,7.99181991]
[1772116512892,8.00828802,88.07,87.972,7.99181991]
[1772116513088,8.00828802,88.05,87.972,7.99181991]
[1772116513389,8.00828802,88.07,87.889,159.2863]
[1772116513390,8.00828802,88.03,87.941,7.99181991]
[1772116513590,8.00828802,88.03,87.943,7.99181991]
[1772116514098,8.00828802,88.07,87.881,159.2999]
[1772116514099,8.00828802,88.07,87.947,7.99181991]
[1772116514298,7.6181351,88.039,87.947,7.99181991]
[1772116514497,5.10946477,88.041,87.961,7.99181991]
[1772116514696,7.6181351,88.064,87.938,159.1981]
[1772116514697,7.6181351,88.064,87.986,7.99181991]
[1772116514999,7.6181351,88.064,87.926,159.2184]
[1772116515000,7.6181351,88.109,88.021,7.99181991]
[1772116515201,7.6181351,88.106,88.013,10.2253]
[1772116515397,7.6181351,88.106,88.014,7.99181991]
[1772116515600,5.11182715,88.101,88.014,7.99181991]
[1772116515798,7.6181351,88.087,88.0,8.00828802]
[1772116516002,7.6181351,88.087,88.001,7.99181991]
[1772116516193,7.6181351,88.057,87.98,8.00828802]
[1772116516393,7.6181351,88.057,87.977,7.99181991]
[1772116516797,7.6181351,88.057,87.981,10.229]
[1772116517200,7.6181351,88.057,87.977,7.99181991]
[1772116517405,8.00828802,88.07,87.977,7.99181991]
[1772116517406,7.6181351,88.055,87.977,7.99181991]
[1772116517603,7.6181351,88.079,87.991,7.99181991]
[1772116517903,158.8116,88.153,87.97,8.00828802]
[1772116517904,7.6181351,88.095,88.011,7.99181991]
[1772116518205,7.6181351,88.089,87.99,8.00828802]
[1772116518508,5.1122348,88.101,87.987,7.99181991]
[1772116518509,7.6181351,88.069,87.987,7.99181991]
[1772116518797,8.00828802,88.07,87.97,8.00828802]
[1772116518798,7.6181351,88.057,87.97,8.00828802]
[1772116519200,7.6181351,88.057,87.971,7.99181991]
[1772116519395,8.00828802,88.05,87.971,7.99181991]
[1772116519595,7.6181351,88.049,87.971,7.99181991]
[1772116520103,7.6181351,88.049,87.95,8.00828802]
[1772116520104,7.6181351,88.049,87.951,7.99181991]
[1772116520503,10.2242,88.024,87.951,7.99181991]
[1772116520704,7.6181351,88.029,87.951,7.99181991]
[1772116521002,158.8887,88.11,87.953,7.99181991]
[1772116521003,8.00828802,88.05,87.953,7.99181991]
[1772116521198,8.00828802,88.05,87.971,7.99181991]
[1772116521404,7.6181351,88.049,87.943,7.99181991]
[1772116521704,7.6181351,88.023,87.943,7.99181991]
[1772116522095,10.2263,88.006,87.911,7.99181991]
[1772116522296,7.6181351,88.009,87.911,7.99181991]
[1772116522504,7.6181351,88.009,87.91,8.00828802]
[1772116522505,7.6181351,88.009,87.918,7.99181991]
[1772116523005,7.6181351,88.009,87.932,10.2348]
[1772116523208,10.2261,88.008,87.932,10.2348]
[1772116523503,7.6181351,88.029,87.936,10.2342]
[1772116523700,10.2238,88.028,87.937,7.99181991]
[1772116523896,7.6181351,88.029,87.941,7.99181991]
[1772116524407,8.00828802,88.05,87.961,7.99181991]
[1772116524701,7.6181351,88.053,87.981,7.99181991]
[1772116526209,10.2222,88.041,87.981,7.99181991]
[1772116526408,8.07472314,88.04,87.957,8.07774111]
[1772116526610,8.07472314,88.066,87.991,8.07774111]
[1772116526809,337.14224814,88.071,87.991,8.07774111]
[1772116527309,337.14224814,88.071,88.01,7.96245378]
[1772116527505,8.07472314,88.116,88.031,8.07774111]
[1772116528507,8.07472314,88.109,88.011,8.07774111]
[1772116528814,7.96245378,88.13,88.033,8.07774111]
[1772116529311,7.96245378,88.13,88.03,7.96245378]
[1772116529312,8.07472314,88.146,88.051,8.07774111]
[1772116530006,8.07472314,88.171,88.081,8.07774111]
[1772116530309,26.89076228,88.213,88.12,10.2129]
[1772116530310,10.204,88.198,88.12,10.2129]
[1772116530516,8.07472314,88.197,88.12,10.2129]
[1772116530703,8.07472314,88.197,88.104,8.07774111]
[1772116530907,8.07472314,88.182,88.104,8.07774111]
[1772116531117,8.07472314,88.182,88.078,8.07774111]
[1772116531515,8.07472314,88.179,88.078,8.07774111]
[1772116532118,8.07472314,88.165,88.082,10.2174]
[1772116532414,8.07472314,88.165,88.078,8.07774111]
[1772116532816,8.07472314,88.165,88.105,10.2147]
[1772116533018,8.07472314,88.165,88.078,8.07774111]
[1772116533618,41.53857146,88.19,88.078,8.07774111]
[1772116533923,41.53857146,88.19,88.06,33.46384832]
[1772116533924,8.07472314,88.19,88.113,10.2137]
[1772116534116,8.07472314,88.19,88.104,8.07774111]
[1772116534317,8.07472314,88.19,88.08,8.07774111]
[1772116534514,8.07472314,88.174,88.08,8.07774111]
[1772116535120,26.89076228,88.213,88.08,8.07774111]
[1772116535121,8.07472314,88.198,88.081,8.07774111]
[1772116535417,192.8678,88.255,88.072,158.9542]
[1772116535418,8.07472314,88.222,88.101,8.07774111]
[1772116535718,8.07472314,88.222,88.087,158.9286]
[1772116535719,8.07472314,88.221,88.128,8.07774111]
[1772116535922,158.5481,88.299,88.12,33.46384832]
[1772116535923,8.07472314,88.247,88.135,8.07774111]
[1772116536121,31.64212788,88.233,88.135,8.07774111]
[1772116536313,8.07472314,88.22,88.135,8.07774111]
[1772116536627,23.56740474,88.233,88.135,8.07774111]
[1772116536822,5.10456974,88.231,88.135,8.07774111]
[1772116537120,33.46384832,88.2,88.101,8.07774111]
[1772116537422,33.46384832,88.18,88.08,8.07774111]
[1772116537621,33.46384832,88.2,88.08,8.07774111]
[1772116537815,10.2075,88.168,88.08,8.07774111]
[1772116538019,5.10456974,88.191,88.08,8.07774111]
[1772116538418,33.46384832,88.2,88.105,10.2147]
[1772116538419,10.2058,88.182,88.105,10.2147]
[1772116538621,1.9885616,88.19,88.08,8.07774111]
[1772116538926,1.9885616,88.179,88.08,8.07774111]
[1772116539117,10.2111,88.136,88.057,18.02412119]
[1772116539317,10.2111,88.136,88.058,7.80382119]
[1772116539929,1.91695226,88.179,88.062,7.80382119]
[1772116540222,1.93074671,88.16,88.062,7.80382119]
[1772116540629,1.92989697,88.159,88.025,7.80382119]
[1772116540822,1.92989697,88.159,88.027,7.80382119]